Cogmind - Beta 12 @@@ ROGUE MODE // 2023.03.24 @ 13:58:30 Player: Maugrift Result: Destroyed by H-88 Terminator with KE Penetrator Performance ------------- Evolutions (8) 4000 Regions Visited (18) 3600 Robots Destroyed (187) 935 Value Destroyed (9716) 9716 Prototype IDs (15) 300 Alien Tech Used (0) 0 Bonus (4873) 4873 TOTAL SCORE: 23424 Bonus ------- High Alert Combat Kills 2041 Follower Combat Kills 2303 Entered Garrisons 200 Entered DSFs 500 Met Imprinter 300 Was Imprinted 300 Friendly Fire -771 Cogmind --------- Core Integrity 0/1450 Matter 242/300 Energy 340/340 System Corruption 4% Temperature Hot (232) Movement Rolling (146) Ox3 Location -2/Research Parts ------- > --- POWER (2) -------- Micro Antimatter Reactor Light Quantum Reactor > --- PROPULSION (6) --- Medium Treads Compact Wheel Compact Wheel Centrium Wheel > --- UTILITY (9) ------ Large Storage Unit Small Battery Spectral Analyzer Advanced Targeting Computer Advanced Target Analyzer Heavy Armor Plating > --- WEAPON (6) ------- Enhanced Nova Cannon KE Penetrator Railgun Railgun Hypervelocity Mass Driver > --- INVENTORY (15) --- Particle Reactor Quantum Reactor Biometal Leg Biometal Leg Combat Gravmag System Xenon Bombardment Thruster Huge Storage Unit Gamma Rifle Gamma Rifle Gamma Rifle Enhanced Quantum Rifle Rocket Array Peak State ------------ > --- POWER ------------ Particle Reactor Particle Reactor > --- PROPULSION ------- Armored Heavy Treads Armored Heavy Treads Armored Heavy Treads > --- UTILITY ---------- Advanced Cooling System Advanced Cooling System Large Storage Unit Advanced Targeting Computer Advanced Force Booster Heavy Armor Plating Centrium Medium Armor Plating > --- WEAPON ----------- Enhanced Quantum Rifle Enhanced Quantum Rifle Railgun Railgun Advanced KE Penetrator > --- INVENTORY -------- Neutrino Core Micro Antimatter Reactor Biometal Medium Treads Xenon Bombardment Thruster Advanced Coolant Injector Matter Compressor Improved Weapon Cycler Gamma Rifle Advanced Variable Charge Gun Quantum Rifle Enhanced Quantum Rifle Enhanced Quantum Rifle Heavy Flak Cannon Heavy Shock Bomb Launcher Rocket Array [Rating: 154] Favorites ----------- Power Particle Reactor Engine Makeshift Power Source Power Core Neutrino Core Reactor Particle Reactor Propulsion Armored Heavy Treads Treads Armored Heavy Treads Leg Carbon-fiber Leg Wheel Compact Wheel Hover Unit Combat Gravmag System Flight Unit Xenon Bombardment Thruster Utility Large Storage Unit Device Advanced Heat Sink Storage Large Storage Unit Processor Advanced Targeting Computer Protection Centrium Medium Armor Plating Weapon Railgun Energy Gun Enhanced Quantum Rifle Energy Cannon Beam Cannon Ballistic Gun Railgun Ballistic Cannon Hypervelocity Mass Driver Launcher Heavy Shock Bomb Launcher Impact Weapon Heavy Hammer Build | -11 -10 -10 -9 -9 -7 -6 -6 -5 -5 -5 -5 -5 -4 -4 -3 -3 -3 -2 ------- Run | Jun Mat Min Mat Min Zio Pro Fac Fac Ext Cet Arc Hub Fac DSF Res Gar Res Res Slots Evolved 16 | . . . 2 . . . 6 2 . . . . 2 . 2 . . 2 Power 1 | . . . . . . . . 1 . . . . . . . . . . Propulsion 4 | . . . 1 . . . 1 . . . . . 1 . 1 . . . Utility 7 | . . . 1 . . . 2 1 . . . . 1 . 1 . . 1 Weapon 4 | . . . . . . . 3 . . . . . . . . . . 1 Parts Attached 253 | . 8 7 14 6 6 12 20 16 9 22 5 6 2 9 2 29 47 33 Power 25 | . . 2 1 . . 1 1 5 . 2 2 1 . . . 4 3 3 Engine 4 | . . 1 1 . . 1 1 . . . . . . . . . . . Core 9 | . . 1 . . . . . 4 . 1 1 . . . . 1 1 . Reactor 12 | . . . . . . . . 1 . 1 1 1 . . . 3 2 3 Propulsion 58 | . 2 2 7 1 . 5 4 1 4 3 . . 1 3 1 . 14 10 Treads 29 | . . . 2 . . 5 4 1 4 3 . . 1 3 1 . 2 3 Leg 18 | . 2 2 5 1 . . . . . . . . . . . . 8 . Wheel 5 | . . . . . . . . . . . . . . . . . . 5 Hover 2 | . . . . . . . . . . . . . . . . . 1 1 Flight 4 | . . . . . . . . . . . . . . . . . 3 1 Utility 81 | . 3 2 2 2 5 1 7 7 1 9 1 1 1 3 1 12 13 10 Device 37 | . 1 2 . 1 2 1 5 3 . 3 1 . 1 2 . 7 7 1 Storage 10 | . 2 . . . 1 . . 2 . 1 . 1 . . . . 1 2 Processor 10 | . . . . . . . 1 1 1 . . . . . . . 2 5 Hackware . | . . . . . . . . . . . . . . . . . . . Protection 24 | . . . 2 1 2 . 1 1 . 5 . . . 1 1 5 3 2 Artifact . | . . . . . . . . . . . . . . . . . . . Weapon 89 | . 3 1 4 3 1 5 8 3 4 8 2 4 . 3 . 13 17 10 Energy Gun 33 | . 1 1 1 1 . 3 3 2 1 2 1 1 . 2 . 5 6 3 Energy Cannon 3 | . 1 . 1 . . . . . . . . . . . . . . 1 Ballistic Gun 34 | . 1 . . . 1 1 5 1 1 4 1 1 . 1 . 6 7 4 Ballistic Cannon 4 | . . . . . . . . . . 1 . . . . . . 1 2 Launcher 14 | . . . 2 1 . 1 . . 2 1 . 2 . . . 2 3 . Special Weapon . | . . . . . . . . . . . . . . . . . . . Impact Weapon 1 | . . . . 1 . . . . . . . . . . . . . . Slashing Weapon . | . . . . . . . . . . . . . . . . . . . Piercing Weapon . | . . . . . . . . . . . . . . . . . . . Special Melee Weapon . | . . . . . . . . . . . . . . . . . . . Unidentified Prototypes 15 | . . . . . 2 . . 2 . 4 . 1 . 2 . 1 2 1 Corrupted Parts 1 | . . . . . . . . . . . . . . . . . 1 . System Corruption 2 | . . . . . . . . . . . . . . . . . 2 . Parts Lost 67 | . 1 . . 2 . 4 2 . . 9 1 . . 1 . 9 34 4 Power 6 | . . . . . . . . . . 1 1 . . . . . 4 . Propulsion 20 | . . . . 1 . 3 1 . . 1 . . . . . . 11 3 Utility 21 | . . . . 1 . 1 1 . . 2 . . . . . 7 8 1 Weapon 20 | . 1 . . . . . . . . 5 . . . 1 . 2 11 . Highest Loss Streak 20 | . 1 . . 2 . 3 1 . . 5 1 . . 1 . 3 20 4 To Critical Strikes 4 | . . . . . . . 1 . . 2 . . . . . . 1 . Average Slot Usage (%) 87 | . 99 99 100 99 99 96 94 95 94 86 88 87 87 89 79 73 59 63 Engine 3 | . 14 1 5 11 11 11 6 2 . . . . . . . . . . Core 2 | . . 12 5 . . . . 5 5 1 5 2 . . . . . . Reactor 4 | . . . . . . . . 2 5 9 4 7 10 10 9 7 6 4 Treads 11 | . . . 6 . . 25 23 23 23 13 11 11 15 15 13 14 8 4 Leg 8 | . 28 28 26 33 33 7 . . . . . . . . . . 1 . Device 10 | . 2 14 11 11 11 11 16 6 5 8 11 11 13 14 9 11 11 1 Storage 7 | . 24 14 11 11 11 11 6 4 5 6 5 5 5 5 4 4 3 4 Processor 3 | . . . . . . . 5 10 11 6 5 5 5 5 4 1 2 12 Protection 7 | . . . 11 10 10 9 1 5 5 8 11 11 10 10 13 7 4 3 Energy Gun 7 | . 5 13 10 8 . 8 12 11 8 9 11 6 5 5 4 9 7 5 Energy Cannon 2 | . 6 14 11 11 10 . . . . . . . . . . . . . Ballistic Gun 13 | . 16 . . . 9 11 20 17 19 15 17 21 21 21 19 12 7 2 Naked Turns 14 | . . . . . . . . . . . . . . . . . 14 . Heaviest Build 135 | 12 21 22 29 28 34 45 62 90 84 107 97 97 92 94 107 120 105 135 Greatest Support 190 | 20 20 20 55 55 50 68 96 103 115 160 160 160 187 187 180 180 190 64 Greatest Overweight (x) 5 | . 1 1 1 . . . . . . 1 . . . . . . . 5 Average Overweight (x) . | . . . . . . . . . . . . . . . . . . 1 Largest Inventory Capacity 15 | 8 10 10 10 10 15 15 15 15 15 15 15 15 15 15 15 15 15 15 Average Capacity 13 | 8 8 10 10 10 12 15 15 14 15 15 15 15 15 15 15 15 12 12 Most Carried 15 | 6 10 10 10 10 15 15 15 15 15 15 15 15 15 15 15 15 15 13 Average Carried 12 | 6 7 9 9 9 11 14 14 14 14 13 14 14 14 14 12 14 11 6 Final Capacity 15 | 8 10 10 10 10 15 15 15 15 15 15 15 15 15 15 15 15 5 15 Final Carried 15 | 6 10 10 10 10 15 15 15 15 15 14 15 15 15 14 15 14 5 12 Class Distribution -------------------- 43% | Scavenger-Tank 33% | Scavenger-Mutant 15% | Scavenger-Gunner 4% | Mutant Dominant Class ---------------- Mutant | -10/Materials Scavenger-Mutant | -10/Mines Scavenger-Mutant | -9/Materials Scavenger-Mutant | -9/Mines Scavenger-Mutant | -7/Zion Scavenger-Mutant | -6/Proximity Caves Scavenger-Tank | -6/Factory Scavenger-Gunner | -5/Factory Scavenger-Gunner | -5/Extension Scavenger-Tank | -5/Cetus Scavenger-Tank | -5/Archives Scavenger-Tank | -5/Hub_04(d) Scavenger-Tank | -4/Factory Scavenger-Tank | -4/DSF Scavenger-Tank | -3/Research Scavenger-Tank | -3/Garrison Scavenger-Tank | -3/Research Scavenger-Executioner | -2/Research Resources | -11 -10 -10 -9 -9 -7 -6 -6 -5 -5 -5 -5 -5 -4 -4 -3 -3 -3 -2 ----------- Run | Jun Mat Min Mat Min Zio Pro Fac Fac Ext Cet Arc Hub Fac DSF Res Gar Res Res Matter Collected 7028 | 199 276 74 189 58 80 213 427 296 342 896 131 348 . 255 122 1256 1121 745 Remotely . | . . . . . . . . . . . . . . . . . . . Salvage Created 10965 | . 466 88 414 137 . 209 763 156 714 912 453 664 . 718 31 2380 2110 750 Parts 494 | . 27 5 34 6 . 13 34 3 18 42 18 29 . 26 4 95 105 35 Haulers Intercepted 7 | . 2 . 1 . . . 1 1 1 . . 1 . . . . . . Recyclers Shooed 7 | . . . 1 1 . . . . 1 . . . . . 2 . . 2 Parts Field Recycled . | . . . . . . . . . . . . . . . . . . . Retrieved Matter . | . . . . . . . . . . . . . . . . . . . Parts Self-Destructed 15 | . . . . . . 15 . . . . . . . . . . . . Prevented 2 | . . . . . . 2 . . . . . . . . . . . . Kills | -11 -10 -10 -9 -9 -7 -6 -6 -5 -5 -5 -5 -5 -4 -4 -3 -3 -3 -2 ------- Run | Jun Mat Min Mat Min Zio Pro Fac Fac Ext Cet Arc Hub Fac DSF Res Gar Res Res Combat Hostiles Destroyed 150 | . 8 2 12 1 . 4 6 1 8 17 4 7 . 8 . 35 29 8 Guns 98 | . 3 . 1 . . 4 6 1 1 11 4 7 . 8 . 28 24 . Cannons 19 | . 5 2 1 . . . . . . 2 . . . . . . 1 8 AOE 31 | . . . 10 1 . . . . 7 4 . . . . . 7 2 . Classes Destroyed 21 | . 4 . 6 . . 2 . . 2 . 1 2 . 1 . . 3 . Worker 6 | . . . 1 . . . 1 . 1 . . . . . . . 3 . Builder 4 | . . . 1 . . . . . . . . . . . . . 3 . Tunneler 1 | . . . . . . . . . . . . . . . . . 1 . Hauler 7 | . 2 . 1 . . . 1 1 1 . . 1 . . . . . . Recycler 9 | . . . 1 1 . . 2 . 3 . . 1 . . . . . 1 Mechanic 2 | . 1 . . 1 . . . . . . . . . . . . . . Operator 1 | . . . . . . . . . . . 1 . . . . . . . Drone 1 | . . . . . . . . . . . . . . . . . 1 . Watcher 5 | . 1 . 1 . . . 1 . . 1 . . . . 1 . . . Swarmer 24 | . . . 7 . . . . . . 4 . . . . . 11 2 . Grunt 55 | . 8 2 3 1 . 1 . . 6 5 . 2 . 3 . 9 15 . Brawler 3 | . . . . . . . . . 1 . . . . . . 2 . . Duelist 9 | . . . 1 . . . . . 1 1 . . . . . 5 1 . Protector 1 | . . . . . . . . . . . . . . . . . 1 . Sentry 17 | . . . 1 . . . 4 . . . 4 1 . . . 5 . 2 Specialist 3 | . . . . . . . . . . . . . . 3 . . . . Hunter 19 | . . . . . . 2 1 . . 3 . . . 2 . 2 6 3 Programmer 12 | . . . . . . 1 1 1 . . . 2 . . . . 4 3 Heavy 1 | . . . . . . . . . . . . 1 . . . . . . Behemoth 2 | . . . . . . . . . . . . 1 . . . 1 . . Cetus Guard 4 | . . . . . . . . . . 4 . . . . . . . . Thug 1 | . . . 1 . . . . . . . . . . . . . . . Fireman 1 | . . . . . . . . . 1 . . . . . . . . . Best Kill Streak 10 | . 5 2 10 2 . 2 3 1 9 6 4 4 . 4 1 7 10 4 Combat Bots Only 8 | . 3 2 8 1 . 2 1 1 8 5 3 3 . 4 . 7 8 4 Max Kills in Single Turn 3 | . 1 1 3 1 . 1 2 1 3 2 2 1 . 2 1 3 2 1 Gunslinging 1 | . . . . . . . . . . 1 . . . 1 . 1 1 . Exploded 3 | . . . 3 1 . . . . 3 2 . . . . . 3 2 . Melee . | . . . . . . . . . . . . . . . . . . . Uniques/NPCs Destroyed . | . . . . . . . . . . . . . . . . . . . Combat | -11 -10 -10 -9 -9 -7 -6 -6 -5 -5 -5 -5 -5 -4 -4 -3 -3 -3 -2 -------- Run | Jun Mat Min Mat Min Zio Pro Fac Fac Ext Cet Arc Hub Fac DSF Res Gar Res Res Damage Taken 19398 | . 473 64 355 181 . 712 549 148 259 2849 225 344 . 407 147 4188 5525 2972 Core 2852 | . 54 14 26 11 . 107 77 22 . 227 . 33 . . . 215 615 1451 Absorbed by Shields 122 | . . . . . . . 71 . . . . . . . . 51 . . Core Remaining (%) 76 | 100 . 72 . . . 64 90 . . . . 71 . 100 . . 36 . Volleys Fired 407 | . 42 4 16 8 . 17 21 8 18 67 7 19 . 11 3 76 70 20 Largest 6 | . 2 2 2 2 . 2 5 5 5 5 5 5 . 5 5 5 5 6 Hottest 467 | . 80 80 125 125 . 103 234 234 245 258 258 279 . 228 226 266 368 467 Shots Fired 1386 | . 84 8 27 14 . 32 98 36 65 189 31 80 . 55 13 338 243 73 Gun 1245 | . 70 4 11 6 . 28 98 36 59 170 31 80 . 55 13 333 222 29 Cannon 103 | . 14 4 11 6 . . . . . 16 . . . . . . 8 44 Launcher 38 | . . . 5 2 . 4 . . 6 3 . . . . . 5 13 . Special . | . . . . . . . . . . . . . . . . . . . Kinetic 852 | . 66 4 . . . 16 61 24 41 133 21 56 . 44 12 202 124 48 Thermal 471 | . 18 4 22 12 . 8 37 12 18 53 10 24 . 11 1 125 102 14 Explosive 25 | . . . 5 2 . 4 . . 6 3 . . . . . . 5 . Electromagnetic 32 | . . . . . . 4 . . . . . . . . . 5 12 11 Phasic 6 | . . . . . . . . . . . . . . . . 6 . . Robot Hit Streak 31 | . 7 5 3 6 . 5 26 11 11 11 24 16 . 10 1 31 13 7 Robot Miss Streak 9 | . 2 1 4 2 . 2 2 5 2 3 1 4 . 2 3 9 9 5 Penetration Max 2 | . . . . . . . 1 . 1 1 1 . . 1 1 1 1 2 Secondary Targets 22 | . 2 . . . . . . . . 3 . 1 . 2 . 11 3 . Max Gunslinging Chain 2 | . 1 . . . . . . . . 1 . 1 . 1 . 2 1 . Shots Hit Robots 875 | . 48 5 11 9 . 22 59 21 50 117 23 50 . 37 3 233 150 37 Core Hits 467 | . 27 3 31 5 . 13 27 8 41 50 12 21 . 22 3 99 87 18 Critical Kills 28 | . . . . . . . . . . 3 4 3 . 2 . 1 8 7 Critical Parts Destroyed 40 | . 1 . . . . . . 1 . 9 . 1 . 4 . 4 9 11 Critical Strikes 81 | . 1 . . . . . 3 2 . 15 6 6 . 6 . 6 18 18 Burn 6 | . . . . . . . 3 1 . 1 1 . . . . . . . Destroy 74 | . 1 . . . . . . 1 . 14 5 6 . 6 . 6 17 18 Blast 1 | . . . . . . . . . . . . . . . . . 1 . Melee Attacks 2 | . . . . 2 . . . . . . . . . . . . . . Impact 2 | . . . . 2 . . . . . . . . . . . . . . Slashing . | . . . . . . . . . . . . . . . . . . . Piercing . | . . . . . . . . . . . . . . . . . . . Sneak Attacks . | . . . . . . . . . . . . . . . . . . . Combat Hostiles . | . . . . . . . . . . . . . . . . . . . Follow-up Attacks . | . . . . . . . . . . . . . . . . . . . Damage Inflicted 26687 | . 576 84 1177 452 . 450 1303 488 2575 2978 515 1554 . 1051 155 7352 4735 1242 Guns 20082 | . 436 10 93 62 . 354 1193 488 1127 2549 514 1410 . 1051 155 6360 3684 596 Cannons 1300 | . 140 71 106 53 . . . . . 141 . . . . . . 143 646 Explosions 5120 | . . . 978 337 . 96 105 . 1443 288 . . . . . 992 881 . Melee . | . . . . . . . . . . . . . . . . . . . Ramming 185 | . . 3 . . . . 5 . 5 . 1 144 . . . . 27 . Kinetic 11986 | . 401 10 . . . 183 592 273 734 1855 274 875 . 776 128 3401 1803 681 Thermal 8962 | . 175 71 199 115 . 105 706 215 393 835 240 535 . 275 27 2769 1903 399 Explosive 3726 | . . . 978 337 . 96 . . 1443 288 . . . . . . 584 . Electromagnetic 1638 | . . . . . . 66 . . . . . . . . . 992 418 162 Impact . | . . . . . . . . . . . . . . . . . . . Slashing . | . . . . . . . . . . . . . . . . . . . Piercing . | . . . . . . . . . . . . . . . . . . . Phasic 190 | . . . . . . . . . . . . . . . . 190 . . Highest Corruption 5 | . . . . . . . . . . 3 3 3 . . . . 5 4 Average Corruption 2 | . . . . . . . . . . 2 3 3 . . . . 1 2 Corruption Purged . | . . . . . . . . . . . . . . . . . . . Corruption Blocked . | . . . . . . . . . . . . . . . . . . . Effects 54 | . . . . . . . . . . 1 6 30 . . . . 13 4 Message Errors 14 | . . . . . . . . . . . 2 10 . . . . 1 1 Matter Fused 15 | . . . . . . . . . . . 2 8 . . . . 5 . Heat Flow Errors 4 | . . . . . . . . . . . . 2 . . . . 2 . Energy Discharges 7 | . . . . . . . . . . 1 . 5 . . . . . 1 Parts Rejected 1 | . . . . . . . . . . . . . . . . . . 1 Data Loss (minor) 4 | . . . . . . . . . . . 1 3 . . . . . . Data Loss (major) 2 | . . . . . . . . . . . . . . . . . 1 1 Misfires 2 | . . . . . . . . . . . . 1 . . . . 1 . Alerts 3 | . . . . . . . . . . . 1 1 . . . . 1 . Weapon Failures 2 | . . . . . . . . . . . . . . . . . 2 . Overload Shots . | . . . . . . . . . . . . . . . . . . . Overflow Damage 81 | . . . 38 3 . 10 . . 5 3 . 3 . . . 17 2 . Projectiles . | . . . . . . . . . . . . . . . . . . . Explosions 78 | . . . 38 3 . 10 . . 5 3 . . . . . 17 2 . Melee 3 | . . . . . . . . . . . . 3 . . . . . . Knockbacks 5 | . . . . . . . . . . . . . . . . . 2 3 Impact . | . . . . . . . . . . . . . . . . . . . Kinetic 5 | . . . . . . . . . . . . . . . . . 2 3 Secondary . | . . . . . . . . . . . . . . . . . . . Self-Inflicted Damage 456 | . . . 93 . . . 32 . . 49 . . . . . 9 273 . Shots 17 | . . . 2 . . . 1 . . 1 . . . . . 2 11 . Rammed 20 | . . . . . . . 1 . 1 . 1 15 . . . . 2 . Targets Rammed 23 | . 1 1 . . . . 1 . 1 . 1 15 . . . . 3 . Kicked 2 | . 1 1 . . . . . . . . . . . . . . . . Crushed 1 | . . . . . . . . . . . . . . . . . 1 . Highest Temperature 907 | . 231 37 261 84 . 64 408 396 575 907 136 359 . 36 33 395 306 867 Average Temperature 170 | . 51 18 93 34 . 34 140 198 177 277 51 165 . 20 22 100 55 349 Received Heat Transfer 2464 | . 264 36 108 81 . 24 127 . 84 201 27 81 . 126 . 541 710 54 Effects 110 | . . . . . . . 4 7 7 32 . 5 . . . 3 . 52 Shutdowns 24 | . . . . . . . . 1 2 7 . 1 . . . . . 13 Energy Bleed 10 | . . . . . . . 1 1 . 3 . . . . . . . 5 Interference 29 | . . . . . . . 3 5 1 5 . 3 . . . 3 . 9 Matter Decay 9 | . . . . . . . . . 1 4 . . . . . . . 4 Short Circuit 9 | . . . . . . . . . . 5 . 1 . . . . . 3 Damage (minor) 9 | . . . . . . . . . 1 3 . . . . . . . 5 Damage (major) 13 | . . . . . . . . . 2 5 . . . . . . . 6 Damage (core) 7 | . . . . . . . . . . . . . . . . . . 7 Siege Activations . | . . . . . . . . . . . . . . . . . . . Robots Corrupted 2 | . . . . . . . . . . . . . . . . . 2 . Combat Hostiles 2 | . . . . . . . . . . . . . . . . . 2 . Parts Fried 9 | . . . . . . . . . . . . . . . . 5 4 . Impact Corruptions 1 | . . . . . . . . . . . . 1 . . . . . . Robots Melted . | . . . . . . . . . . . . . . . . . . . Combat Hostiles . | . . . . . . . . . . . . . . . . . . . Parts Melted 36 | . 1 . . . . . 7 4 2 5 1 5 . . . 8 2 1 Heat Transferred 13332 | . 371 148 444 259 . 185 1479 574 733 1503 548 703 . 333 37 3205 2403 407 Parts Sabotaged . | . . . . . . . . . . . . . . . . . . . Parts Stolen . | . . . . . . . . . . . . . . . . . . . Parts Stripped . | . . . . . . . . . . . . . . . . . . . Power Chain Reactions . | . . . . . . . . . . . . . . . . . . . Missiles Intercepted . | . . . . . . . . . . . . . . . . . . . Alert | -11 -10 -10 -9 -9 -7 -6 -6 -5 -5 -5 -5 -5 -4 -4 -3 -3 -3 -2 ------- Run | Jun Mat Min Mat Min Zio Pro Fac Fac Ext Cet Arc Hub Fac DSF Res Gar Res Res Peak Influence 1219 | . 253 70 402 181 . . 244 289 438 314 267 916 448 440 365 1219 968 734 Initial 685 | . . 20 . 78 . . 31 45 112 132 124 93 448 313 247 273 685 456 Average 371 | . 130 52 268 160 . . 94 132 246 238 246 452 448 386 280 726 761 560 Maximum Alert Level 4 | . 1 . 2 . . . 1 1 2 1 1 3 2 2 1 4 3 3 Low Security (%) 35 | 100 71 100 29 100 . . 91 87 32 33 14 9 . . . . . . Level 1 26 | . 28 . 23 . . . 8 12 44 66 85 52 . 60 100 2 . . Level 2 20 | . . . 47 . . . . . 22 . . 19 100 39 . 46 31 84 Level 3 16 | . . . . . . . . . . . . 17 . . . 45 68 15 Level 4 . | . . . . . . . . . . . . . . . . 6 . . Level 5 . | . . . . . . . . . . . . . . . . . . . High Security . | . . . . . . . . . . . . . . . . . . . Max Security . | . . . . . . . . . . . . . . . . . . . Sterilizations 1 | . . . . . . . . . . . . . . 1 . . . . Squads Dispatched 29 | . 2 1 1 1 . . 2 2 . . . 7 . 2 . . 8 3 Investigation 3 | . . 1 1 . . . . . . . . . . . . . . 1 Extermination 9 | . . . . . . . 2 1 . . . 4 . . . . 2 . Reinforcement 13 | . 2 . . . . . . 1 . . . 2 . 2 . . 5 1 Assault 2 | . . . . 1 . . . . . . . . . . . . 1 . Garrison 2 | . . . . . . . . . . . . 1 . . . . . 1 Intercept . | . . . . . . . . . . . . . . . . . . . Searches Triggered . | . . . . . . . . . . . . . . . . . . . Construction Impeded 2 | . . . . . . . . . . . . . . . . . 1 1 Haulers Reinforced . | . . . . . . . . . . . . . . . . . . . Active Scanning Responses . | . . . . . . . . . . . . . . . . . . . Cargo Convoy Interrupts . | . . . . . . . . . . . . . . . . . . . Stealth | -11 -10 -10 -9 -9 -7 -6 -6 -5 -5 -5 -5 -5 -4 -4 -3 -3 -3 -2 --------- Run | Jun Mat Min Mat Min Zio Pro Fac Fac Ext Cet Arc Hub Fac DSF Res Gar Res Res Distress Signals 12 | . 2 . 1 . . . . . 1 1 . . . . . . 5 2 Communications Jammed . | . . . . . . . . . . . . . . . . . . . Distress Signals . | . . . . . . . . . . . . . . . . . . . Times Spotted 255 | . 12 2 18 5 . 7 7 19 15 19 5 26 . 9 4 40 52 15 Peak Tracking Total 10 | . 4 2 10 4 . 3 1 4 8 6 2 4 . 5 3 7 9 5 Tactical Retreats 6 | . . . . . . . . . . . . . . . . 1 5 . Traps | -11 -10 -10 -9 -9 -7 -6 -6 -5 -5 -5 -5 -5 -4 -4 -3 -3 -3 -2 ------- Run | Jun Mat Min Mat Min Zio Pro Fac Fac Ext Cet Arc Hub Fac DSF Res Gar Res Res Traps Triggered 6 | . . . 1 . . . . . . . . . . . 1 3 . 1 Indirectly . | . . . . . . . . . . . . . . . . . . . Trap Hack Attempts . | . . . . . . . . . . . . . . . . . . . Triggered . | . . . . . . . . . . . . . . . . . . . Disarmed . | . . . . . . . . . . . . . . . . . . . Reprogrammed . | . . . . . . . . . . . . . . . . . . . Reused . | . . . . . . . . . . . . . . . . . . . Traps Extracted . | . . . . . . . . . . . . . . . . . . . Installed . | . . . . . . . . . . . . . . . . . . . Triggered . | . . . . . . . . . . . . . . . . . . . Machines | -11 -10 -10 -9 -9 -7 -6 -6 -5 -5 -5 -5 -5 -4 -4 -3 -3 -3 -2 ---------- Run | Jun Mat Min Mat Min Zio Pro Fac Fac Ext Cet Arc Hub Fac DSF Res Gar Res Res Machines Disabled 17 | . 1 . 1 . . . 1 . 1 2 2 7 . 1 . 1 . . Max in Single Turn 1 | . 1 . 1 . . . 1 . 1 1 1 1 . 1 . 1 . . Garrison Relay 1 | . . . . . . . . . . . . . . . . 1 . . Machines Repaired . | . . . . . . . . . . . . . . . . . . . Machines Sabotaged . | . . . . . . . . . . . . . . . . . . . Overloaded Fab Kills . | . . . . . . . . . . . . . . . . . . . Hacking | -11 -10 -10 -9 -9 -7 -6 -6 -5 -5 -5 -5 -5 -4 -4 -3 -3 -3 -2 --------- Run | Jun Mat Min Mat Min Zio Pro Fac Fac Ext Cet Arc Hub Fac DSF Res Gar Res Res Machines Accessed 15 | . 1 1 3 . . . . 2 1 2 1 . 1 . 1 1 1 . Terminals 11 | . 1 . 3 . . . . 2 1 2 . . 1 . . 1 . . Fabricators . | . . . . . . . . . . . . . . . . . . . Repair Stations 1 | . . . . . . . . . . . . . . . . . 1 . Recycling Units . | . . . . . . . . . . . . . . . . . . . Scanalyzers . | . . . . . . . . . . . . . . . . . . . Garrison Access 1 | . . . . . . . . . . . . . . . 1 . . . Total Hacks 50 | . 1 1 7 . . . . 2 2 5 25 . 1 . 1 3 2 . Successful 37 | . 1 1 1 . . . . 2 1 4 25 . 1 . 1 . . . Failed 13 | . . . 6 . . . . . 1 1 . . . . . 3 2 . Catastrophic 4 | . . . 2 . . . . . . . . . . . . 1 1 . Database Lockouts . | . . . . . . . . . . . . . . . . . . . Manual 41 | . . . 2 . 1 . 5 4 . . . 18 . . 2 7 2 . Terminals 21 | . 1 . 7 . . . . 2 2 5 . . 1 . . 3 . . Fabricators . | . . . . . . . . . . . . . . . . . . . Repair Stations 2 | . . . . . . . . . . . . . . . . . 2 . Recycling Units . | . . . . . . . . . . . . . . . . . . . Scanalyzers . | . . . . . . . . . . . . . . . . . . . Garrison Access 1 | . . . . . . . . . . . . . . . 1 . . . Terminal Hacks 36 | . 1 1 1 . . . . 2 1 4 25 . 1 . . . . . Record 30 | . . . 1 . . . . . . 4 25 . . . . . . . Open Door 3 | . . 1 . . . . . 1 1 . . . . . . . . . Open DSF 2 | . . . . . . . . 1 . . . . 1 . . . . . Branch Access Points 1 | . 1 . . . . . . . . . . . . . . . . . Fabricator Hacks . | . . . . . . . . . . . . . . . . . . . Repair Station Hacks . | . . . . . . . . . . . . . . . . . . . Recycling Unit Hacks . | . . . . . . . . . . . . . . . . . . . Scanalyzer . | . . . . . . . . . . . . . . . . . . . Garrison Access Hacks 1 | . . . . . . . . . . . . . . . 1 . . . Unlock Access 1 | . . . . . . . . . . . . . . . 1 . . . Unauthorized Hacks . | . . . . . . . . . . . . . . . . . . . Terminals . | . . . . . . . . . . . . . . . . . . . Fabricators . | . . . . . . . . . . . . . . . . . . . Repair Stations . | . . . . . . . . . . . . . . . . . . . Recycling Units . | . . . . . . . . . . . . . . . . . . . Scanalyzers . | . . . . . . . . . . . . . . . . . . . Garrison Access . | . . . . . . . . . . . . . . . . . . . Data Cores Recovered 2 | . . . 1 . . . . . . . . 1 . . . . . . Used 1 | . . . 1 . . . . . . . . . . . . . . . Hacking Detections 7 | . . . 3 . . . . . . 1 . . . . 1 1 1 . Full Trace Events . | . . . . . . . . . . . . . . . . . . . Feedback Events . | . . . . . . . . . . . . . . . . . . . Feedback Blocked . | . . . . . . . . . . . . . . . . . . . Robot Schematics Acquired 3 | . . . . . 3 . . . . . . . . . . . . . Robots Built . | . . . . . . . . . . . . . . . . . . . Authchips . | . . . . . . . . . . . . . . . . . . . Time . | . . . . . . . . . . . . . . . . . . . Total Robot Build Rating . | . . . . . . . . . . . . . . . . . . . Part Schematics Acquired 15 | . . . . . 15 . . . . . . . . . . . . . Parts Built . | . . . . . . . . . . . . . . . . . . . Authchips . | . . . . . . . . . . . . . . . . . . . Time . | . . . . . . . . . . . . . . . . . . . Total Part Build Rating . | . . . . . . . . . . . . . . . . . . . Parts Repaired . | . . . . . . . . . . . . . . . . . . . Time . | . . . . . . . . . . . . . . . . . . . Parts Recycled . | . . . . . . . . . . . . . . . . . . . Recycled Matter . | . . . . . . . . . . . . . . . . . . . Retrieved Matter . | . . . . . . . . . . . . . . . . . . . Retrieved Components . | . . . . . . . . . . . . . . . . . . . Parts Scanalyzed . | . . . . . . . . . . . . . . . . . . . Part Schematics Acquired . | . . . . . . . . . . . . . . . . . . . Parts Damaged . | . . . . . . . . . . . . . . . . . . . Bothacking | -11 -10 -10 -9 -9 -7 -6 -6 -5 -5 -5 -5 -5 -4 -4 -3 -3 -3 -2 ------------ Run | Jun Mat Min Mat Min Zio Pro Fac Fac Ext Cet Arc Hub Fac DSF Res Gar Res Res Used RIF Installer . | . . . . . . . . . . . . . . . . . . . Robots Hacked . | . . . . . . . . . . . . . . . . . . . Non-combat . | . . . . . . . . . . . . . . . . . . . Combat . | . . . . . . . . . . . . . . . . . . . Robot Hacks Applied . | . . . . . . . . . . . . . . . . . . . Relay Couplers Released 6 | . . . . . . . . . . . . 3 . . . 3 . . Machine Destruction 3 | . . . . . . . . . . . . . . . . 3 . . Programmers 3 | . . . . . . . . . . . . 3 . . . . . . Fabnet Peak Effective % . | . . . . . . . . . . . . . . . . . . . Robots Rewired . | . . . . . . . . . . . . . . . . . . . Allies Hacked 2 | . . . . . . . . 1 . . . 1 . . . . . . Hacks Repelled . | . . . . . . . . . . . . . . . . . . . Allies | -11 -10 -10 -9 -9 -7 -6 -6 -5 -5 -5 -5 -5 -4 -4 -3 -3 -3 -2 -------- Run | Jun Mat Min Mat Min Zio Pro Fac Fac Ext Cet Arc Hub Fac DSF Res Gar Res Res Total Allies 33 | . . 2 . 1 4 . 3 8 . . . 12 . . 2 . 1 . Largest Group 7 | . . 2 2 1 5 5 3 6 4 . . 7 7 6 2 2 1 . Highest-Rated Group 465 | . . 45 45 31 187 187 200 282 112 . . 465 465 377 206 206 32 . Highest-Rated Ally 103 | . . 31 31 31 41 41 85 85 28 . . 85 85 85 103 103 32 . Zionite Dispatches 11 | . . . . . . . 2 2 . . . 5 . . 1 . 1 . Heavy 4 | . . . . . . . 1 . . . . 2 . . 1 . . . Light 2 | . . . . . . . . . . . . 2 . . . . . . Fire 2 | . . . . . . . . 2 . . . . . . . . . . Demo 1 | . . . . . . . . . . . . 1 . . . . . . Resource Resupply 1 | . . . . . . . 1 . . . . . . . . . . . Defense Resupply 1 | . . . . . . . . . . . . . . . . . 1 . Total Orders 29 | . . . . . . . 3 . . . . . . . . . 26 . ROAM 1 | . . . . . . . . . . . . . . . . . 1 . FOLLOW 1 | . . . . . . . 1 . . . . . . . . . . . DROP 2 | . . . . . . . 1 . . . . . . . . . 1 . COLLECT 1 | . . . . . . . 1 . . . . . . . . . . . EXPLORE 24 | . . . . . . . . . . . . . . . . . 24 . Ally Attacks 272 | . . . 4 8 . 28 . 61 20 . . 121 . 19 4 7 . . Total Damage 8612 | . . . 86 149 . 923 . 2030 423 . . 3412 . 634 224 731 . . Kills 64 | . . . 1 3 . 4 . 18 5 . . 24 . 2 3 4 . . Allies Corrupted 1 | . . . . . . . . . . . . 1 . . . . . . Allies Melted . | . . . . . . . . . . . . . . . . . . . Intel | -11 -10 -10 -9 -9 -7 -6 -6 -5 -5 -5 -5 -5 -4 -4 -3 -3 -3 -2 ------- Run | Jun Mat Min Mat Min Zio Pro Fac Fac Ext Cet Arc Hub Fac DSF Res Gar Res Res Robot Analysis Total . | . . . . . . . . . . . . . . . . . . . Derelict Logs Recovered 2 | . . 1 . . 1 . . . . . . . . . . . . . Drone Launches 25 | . . . . . . . . . . . . . . . . . 25 . Drone Recoveries 4 | . . . . . . . . . . . . . . . . . 4 . Zionite Intel Received 2 | . . . . . . . . . . . . 1 . . . 1 . . Component Stockpiles 1 | . . . . . . . . . . . . . . . . 1 . . Depthwide Sectors/0 1 | . . . . . . . . . . . . 1 . . . . . . Exploration | -11 -10 -10 -9 -9 -7 -6 -6 -5 -5 -5 -5 -5 -4 -4 -3 -3 -3 -2 ------------- Run | Jun Mat Min Mat Min Zio Pro Fac Fac Ext Cet Arc Hub Fac DSF Res Gar Res Res Turns Passed 11446 | 15 425 529 409 193 1399 672 849 921 449 737 288 1543 45 194 180 1331 886 381 Spaces Moved 6375 | 1 220 267 220 123 1054 385 422 495 225 289 151 880 26 84 97 608 551 277 Core 27 | . . . . . . . . . . . . . . . . . 27 . Treads 3773 | . . . . . . 268 422 495 225 289 151 880 26 84 97 608 228 . Legs 2026 | 1 220 267 220 123 1054 117 . . . . . . . . . . 24 . Wheels 146 | . . . . . . . . . . . . . . . . . . 146 Hover . | . . . . . . . . . . . . . . . . . . . Flight 403 | . . . . . . . . . . . . . . . . . 272 131 Fastest Speed 40 | 120 120 120 120 126 126 126 162 162 162 160 160 160 163 161 170 170 40 40 Average Speed 146 | 120 126 187 148 127 126 153 162 164 163 164 160 160 163 162 170 170 100 87 Slowest Speed 240 | 120 190 190 190 133 126 166 165 165 165 240 160 160 163 170 170 170 170 190 Overloaded Moves . | . . . . . . . . . . . . . . . . . . . Propulsion Burnouts . | . . . . . . . . . . . . . . . . . . . Robots Hopped 3 | . . . 1 . . . . . . . . . . . . . 2 . Cave-ins Triggered . | . . . . . . . . . . . . . . . . . . . Exploration Rate (%) 42 | 2 39 74 23 48 84 53 11 12 43 70 96 66 1 72 6 57 45 7 Regions Visited 18 Branch Regions 8 Pre-discovered Areas 10 | . . . . . 2 . . . . . . 8 . . . . . . Known Exits Taken 6 | . 1 . . . . . . 1 1 . . 1 1 . 1 . . . Unknown Exits Taken 10 | 1 . 1 1 1 1 1 1 . . 1 1 . . . . . 1 . Scrap Searched 4 | . . 1 . . 3 . . . . . . . . . . . . . Spaces Dug 24 | . . . . . . . . . . . . . . . . . 24 . Terrain Destroyed 293 | . . . 43 19 . 35 35 . 33 16 5 21 . . . 16 69 1 Melee . | . . . . . . . . . . . . . . . . . . . Projectile 54 | . . . . . . . 2 . 4 3 5 21 . . . 14 4 1 AOE 237 | . . . 43 19 . 35 33 . 29 13 . . . . . . 65 . Terrain Rammed . | . . . . . . . . . . . . . . . . . . . Walls Destroyed . | . . . . . . . . . . . . . . . . . . . Machines Disabled . | . . . . . . . . . . . . . . . . . . . Actions | -11 -10 -10 -9 -9 -7 -6 -6 -5 -5 -5 -5 -5 -4 -4 -3 -3 -3 -2 --------- Run | Jun Mat Min Mat Min Zio Pro Fac Fac Ext Cet Arc Hub Fac DSF Res Gar Res Res Total 7633 | 15 295 290 276 140 1128 437 538 593 264 431 180 962 28 121 106 753 716 360 Wait 238 | 15 1 3 7 . 44 11 36 29 3 31 7 24 . . . 4 15 8 Move 6350 | . 219 266 217 122 1053 384 421 494 224 288 150 879 25 83 96 605 547 277 Hop 3 | . . . 1 . . . . . . . . . . . . . 2 . Pick Up 130 | . 12 1 7 1 14 5 16 16 2 6 4 7 1 6 3 14 6 9 Fast Attach 125 | . 3 4 6 2 . 6 10 11 2 10 1 3 1 4 . 13 24 25 Attach 61 | . 1 . 3 1 1 4 5 2 . 10 1 1 1 2 2 5 17 5 Detach 39 | . 1 . 3 . . 2 1 3 . 8 . 1 . . 2 . 11 7 Swap 67 | . 4 3 5 3 5 2 5 3 7 2 3 2 . 3 . 11 6 3 Drop 181 | . 11 8 11 1 11 6 22 27 7 9 6 11 . 11 . 25 9 6 Fire 407 | . 42 4 16 8 . 17 21 8 18 67 7 19 . 11 3 76 70 20 Melee 2 | . . . . 2 . . . . . . . . . . . . . . Ram 1 | . . . . . . . . . . . . . . . . . 1 . Kick 2 | . 1 1 . . . . . . . . . . . . . . . . Crush 19 | . . . . . . . 1 . 1 . 1 15 . . . . 1 . Escape Stasis . | . . . . . . . . . . . . . . . . . . . Rewire 1 | . . . . . . . . . . . . . . 1 . . . . Trap . | . . . . . . . . . . . . . . . . . . . Miscellaneous 7 | . . . . . . . . . . . . . . . . . 7 . Route ------- -11/Junkyard -10/Materials (discovered 2 exits: *Min x2) -10/Mines -9/Materials (discovered 2 exits: *Mat / [*Min]) -9/Mines -7/Zion -6/Proximity Caves -6/Factory -5/Factory -5/Extension (discovered 3 exits: *Fac x2 / *Cet) -5/Cetus (discovered 2 exits: *Fac / *Arc) -5/Archives (discovered 3 exits: *Fac / *Hub x2) -5/Hub_04(d) (discovered 3 exits: *Fac x3) -4/Factory -4/DSF -3/Research -3/Garrison (discovered 2 exits: *Res x2) -3/Research -2/Research History --------- Turn | Location | Event 9 | -11/Junkyard | Discovered new exit (range 2) 16 | -11/Junkyard | Entered Materials 174 | -10/Materials | Identified exit to Mines 310 | -10/Materials | Build established: Mutant 441 | -10/Materials | Entered Mines 501 | -10/Mines | Met a Derelict shopkeep closing up shop 636 | -10/Mines | Build established: Scavenger-Mutant 696 | -10/Mines | Learned location of 1 exit from Materials 747 | -10/Mines | Received a Rocket Launcher from a helpful Derelict 951 | -10/Mines | Discovered new exit (range 8) 970 | -10/Mines | Entered Materials 970 | -9/Materials | Accompanied by 2 allies 970 | -9/Materials | Evolved 2 slots: Propulsion x1, Utility x1 971 | -9/Materials | Identified exit to Materials 975 | -9/Materials | Led the pair of lost Derelicts to an unsafe place 1118 | -9/Materials | Destroyed 8 combat bots 1175 | -9/Materials | Discovered new exit (range 8) 1379 | -9/Materials | Entered Mines 1380 | -9/Mines | Met a Derelict testing a Signal Generator 1539 | -9/Mines | Excavation squad dispatched 1539 | -9/Mines | A large section of the Mines collapsed 1558 | -9/Mines | A Derelict revealed a hidden shortcut to a safe place 1572 | -9/Mines | Entered Zion 1572 | -7/Zion | Accompanied by 1 ally 1887 | -7/Zion | Learned location of Extension (-5) 1967 | -7/Zion | Imprinted 1969 | -7/Zion | Declared Zion's savior 2265 | -7/Zion | Found Prototype Device 2266 | -7/Zion | Identified Mobile Refinery Mk. CCLXVII 2334 | -7/Zion | Given the Hacking Drone Bay 2337 | -7/Zion | Found Prototype Device 2338 | -7/Zion | Identified Hacking Drone Bay 2943 | -7/Zion | Discovered new exit (range 12) 2971 | -7/Zion | Entered Proximity Caves 2971 | -6/Proximity Caves | Accompanied by 5 allies 3110 | -6/Proximity Caves | Spotted B-75 Beast 3144 | -6/Proximity Caves | Allies destroyed B-75 Beast 3161 | -6/Proximity Caves | Lost 3 parts (3n) 3636 | -6/Proximity Caves | Discovered new exit (range 5) 3643 | -6/Proximity Caves | Entered Factory 3643 | -6/Factory | Evolved 6 slots: Propulsion x1, Utility x2, Weapon x3 3939 | -6/Factory | Zion Resource Resupply teleported in 4077 | -6/Factory | Discovered new exit (range 12) 4178 | -6/Factory | Build established: Scavenger-Tank 4405 | -6/Factory | Zion Heavy squad teleported in 4492 | -6/Factory | Entered another Factory area 4492 | -5/Factory | Accompanied by 2 allies 4492 | -5/Factory | Evolved 2 slots: Power x1, Utility x1 4610 | -5/Factory | Zion Fire squad teleported in 4773 | -5/Factory | Found Hvy. Insulated Plating 5088 | -5/Factory | Build established: Scavenger-Gunner 5355 | -5/Factory | Zion Fire squad teleported in 5405 | -5/Factory | Discovered new exit (range 6) 5409 | -5/Factory | Identified exit to Extension 5413 | -5/Factory | Entered Extension 5413 | -5/Extension | Accompanied by 4 allies 5536 | -5/Extension | Spotted B-75 Beast 5547 | -5/Extension | Allies destroyed B-75 Beast 5551 | -5/Extension | Spotted B-75 Beast 5560 | -5/Extension | Allies destroyed B-75 Beast 5638 | -5/Extension | Disrupted transfer network 5655 | -5/Extension | Discovered new exit (range 3) 5658 | -5/Extension | Identified exit to Factory 5734 | -5/Extension | Destroyed 8 combat bots 5823 | -5/Extension | Discovered new exit (range 16) 5825 | -5/Extension | Discovered exit to Factory (range 15) 5848 | -5/Extension | Identified exit to Cetus 5862 | -5/Extension | Entered Cetus 5883 | -5/Cetus | Spotted Cetus Guard 5883 | -5/Cetus | Spotted Cetus Guard 5896 | -5/Cetus | Spotted Cetus Guard 5899 | -5/Cetus | Destroyed Cetus Guard 5899 | -5/Cetus | Destroyed Cetus Guard 5899 | -5/Cetus | Spotted Cetus Guard 5912 | -5/Cetus | Destroyed Cetus Guard 5967 | -5/Cetus | Destroyed Cetus Guard 5983 | -5/Cetus | Lost 5 parts (1n1u3w) 6109 | -5/Cetus | Lost 3 parts (1u2w) 6277 | -5/Cetus | Cetus Manufacturing Module disabled 6413 | -5/Cetus | Build established: Scavenger-Tank 6432 | -5/Cetus | Discovered exit to Factory (range 15) 6575 | -5/Cetus | Discovered new exit (range 16) 6599 | -5/Cetus | Entered Archives 6684 | -5/Archives | Unable to access archive contents 6704 | -5/Archives | Unable to access archive contents 6705 | -5/Archives | Discovered new exit (range 16) 6726 | -5/Archives | Unable to access archive contents 6729 | -5/Archives | Discovered exit to Factory (range 16) 6780 | -5/Archives | Discovered new exit (range 16) 6847 | -5/Archives | Unable to access archive contents 6887 | -5/Archives | Entered Hub_04(d) 6906 | -5/Hub_04(d) | Zion Light squad teleported in 6910 | -5/Hub_04(d) | Discovered exit to Factory (range 6) 6916 | -5/Hub_04(d) | Spotted B-75 Beast 6933 | -5/Hub_04(d) | Destroyed B-75 Beast 7032 | -5/Hub_04(d) | Garrison activated, responded to threat 7160 | -5/Hub_04(d) | Found Prototype Launcher 7160 | -5/Hub_04(d) | Identified Rocket Array 7164 | -5/Hub_04(d) | Found Rocket Array 7195 | -5/Hub_04(d) | Zion Light squad teleported in 7499 | -5/Hub_04(d) | Zion Heavy squad teleported in 7500 | -5/Hub_04(d) | Zion Demo squad teleported in 7615 | -5/Hub_04(d) | Discovered exit to Factory (range 16) 8065 | -5/Hub_04(d) | Zion Heavy squad teleported in 8215 | -5/Hub_04(d) | Retrieved Zion intel report: Depthwide Sectors/0 8217 | -5/Hub_04(d) | Terminal network hard line cut 8322 | -5/Hub_04(d) | Discovered exit to Factory (range 15) 8430 | -5/Hub_04(d) | Entered Factory 8430 | -4/Factory | Accompanied by 7 allies 8430 | -4/Factory | Evolved 2 slots: Propulsion x1, Utility x1 8475 | -4/Factory | Identified exit to DSF 8475 | -4/Factory | Entered DSF 8475 | -4/DSF | Accompanied by 7 allies 8506 | -4/DSF | Discovered new exit (range 14) 8508 | -4/DSF | Additional patrols routed to DSF 8609 | -4/DSF | Sterilization system engaged 8629 | -4/DSF | Ambient heat levels rising (+10) 8644 | -4/DSF | Ambient heat levels rising (+10) 8659 | -4/DSF | Ambient heat levels rising (+10) 8669 | -4/DSF | Entered Research 8669 | -3/Research | Evolved 2 slots: Propulsion x1, Utility x1 8737 | -3/Research | Zion Heavy squad teleported in 8848 | -3/Research | Identified exit to Garrison 8849 | -3/Research | Entered Garrison 8849 | -3/Garrison | Accompanied by 2 allies 8850 | -3/Garrison | Triggered checkpoint 9003 | -3/Garrison | Found Unknown Device 9003 | -3/Garrison | Identified Adv. Force Booster 9201 | -3/Garrison | Spotted B-86 Titan 9317 | -3/Garrison | Garrison Relay disabled 9450 | -3/Garrison | Destroyed 7 combat bots 9481 | -3/Garrison | Destroyed B-86 Titan 9562 | -3/Garrison | Triggered checkpoint 9638 | -3/Garrison | Triggered checkpoint 9698 | -3/Garrison | Discovered new exit (range 11) 9732 | -3/Garrison | Triggered checkpoint 9825 | -3/Garrison | Retrieved Zion intel report: Component Stockpiles 9981 | -3/Garrison | Discovered new exit (range 12) 10037 | -3/Garrison | Attempted to access garrison exit controls, blocked by remote lockdown 10090 | -3/Garrison | Triggered checkpoint 10128 | -3/Garrison | Destroyed 7 combat bots 10134 | -3/Garrison | Lost 3 parts (2u1w) 10180 | -3/Garrison | Entered Research 10467 | -3/Research | First assault squad dispatched 10494 | -3/Research | Lost 3 parts (1n1u1w) 10562 | -3/Research | Destroyed 8 combat bots 10614 | -3/Research | Discovered new exit (range 38) 10825 | -3/Research | Destroyed 8 combat bots 10837 | -3/Research | Lost 20 parts (2p4n5u9w) 10887 | -3/Research | Zion Defense Resupply teleported in 10891 | -3/Research | Found Prototype Device 10891 | -3/Research | Identified Exp. Thermal Shield 10894 | -3/Research | Found Exp. Thermal Shield 11053 | -3/Research | Core integrity fell below 50% 11066 | -3/Research | Entered another Research area 11066 | -2/Research | Evolved 2 slots: Utility x1, Weapon x1 11074 | -2/Research | Found Prototype Processor 11074 | -2/Research | Identified Spectral Analyzer 11076 | -2/Research | Found Spectral Analyzer 11081 | -2/Research | Lost 9 parts (1p6n2u) 11359 | -2/Research | Garrison activated, responded to threat 11426 | -2/Research | Core integrity fell below 50% 11435 | -2/Research | Core integrity fell below 20% 11447 | -2/Research | Destroyed by H-88 Terminator with KE Penetrator Last Messages --------------- 11430_ Penetrated by Slug. 11430_ Med. Treads destroyed. 11430_ Penetrated by Slug. 11433_ Power failure, Lgt. Quantum Reactor shutdown. 11433_ Overheating: Core damaged (-145). 11433_ Penetrated by Slug. 11435_ Overheating: Core damaged (-290). 11436_ Overheating: Core damaged (-145). 11436_ Hrd. Heavy Armor Plating destroyed. 11437_ Penetrated by Slug. 11438_ Overheating: Com. Wheel damaged (-15). 11439_ Power failure, Mic. Antimatter Reactor shutdown. 11439_ Penetrated by Slug. 11439_ Med. Treads destroyed. 11440_ Power failure, Lgt. Quantum Reactor shutdown. 11443_ System corrupted: Hyp. Mass Driver rejected. 11443_ Acquired 54 matter. 11444_ Penetrated by Slug. 11444_ Com. Wheel destroyed. 11447_ Penetrated by Slug. Map ----- +----------------------------------------------------+ | ?????????????????????????????????????????????????? | | ?????????????????????????????????????????????????? | | ?????????????????????????????????????????????????? | | ?????????????????????????????????????????????????? | | ?????????????????????????????????????????????????? | | ?????????????????????????????????????????????????? | | ?????????????????????????????????????????????????? | | ?????????????????????????????????????????????????? | | ?????????????????????##############??????????????? | | ????????????????????## #??????????????? | | ????????????????????? #??????????????? | | ?????????????????????# """S""" ###????????????? | | ?????????????????????# """ """ ""#????????????? | | ?????????????????????# ""#????????????? | | ?????????????????????# ""#????????????? | | ?????????????????????# S#????????????? | | ?????????????????????# != ""#????????????? | | ?????????????????????# ! ""#????????????? | | ?????????????????????? * "??????????????? | | ???????????????????????? ????????????????? | | ?????????????????????????? ??????????????????? | | ##########################+################????? | | % % #????? | | h %% != #????? | | h w % #????? | | h Y ] @ % k #????? | | ?####+######"##;##########+######+###### = #????? | | ??????????# #????? ???# ???# ! #????? | | ??????????# #????? ???# ?# ! #????? | | ??????????# #????? ???# ## #????? | | ??????????# #????? ???# #= #????? | | ??????????# #????? !!???# "" ##! %#????? | | ??????????# """ #????? !!???# "" ##% #????? | | ??????????# """" #???? ??# "" #### ##????? | | ??????????# """" #???? ??# S #??# #?????? | | ??????????# """ #???? ??# "" #??# #?????? | | ??????????##########????#####??# "" #??# #?????? | | ???????????????????????????????# "" #??# #?????? | | ???????????????????????????????# ? #??# #?????? | | ???????????????????????????????# ?? #??# #?????? | | ???????????????????????????????####??##??# #?????? | | ?????????????????????????????????????????# #?????? | | ?????????????????????????????????????????# #?????? | | ?????????????????????????????????????????# #?????? | | ?????????????????????????????????????????# #?????? | | ???????????????????????????????########### #?????? | | ???????????????????????????????# ## ####### | | ???????????????????????????????# # | | ???????????????????????????????# # | | ???????????????????????????????# # | +----------------------------------------------------+ Best States ------------- Heat Dissipation 108 Energy Generation 55 Energy Capacity 580 Matter Stores 400 Matter Capacity 550 Sight Range 24 Robot Scan Range 16 Terrain Scan Density 210 Power Amplification 20 Armor Coverage 1200 Resistance: TH 10 Resistance: EM 30 Core Shielding 30 Weapon Cycling 20 Phase Shifting 10 Evasion (%) 62 Targeting Accuracy 8 Target Analysis 8 Recoil Reduction 6 Authchip Count 1 Item Schematics ----------------- Imp. Launcher Guidance Computer | -7/Zion | Archive Mak. Laser | -7/Zion | Archive Adv. Signal Interpreter | -7/Zion | Archive Microactuators | -7/Zion | Archive Phase Cannon | -7/Zion | Archive Mak. Axe | -7/Zion | Archive Drone Bay | -7/Zion | Archive Gatling Laser | -7/Zion | Archive Mak. Hover Unit | -7/Zion | Archive Imp. Medium Armor Plating | -7/Zion | Archive Imp. Weapon Cycler | -7/Zion | Archive Plasma Rifle | -7/Zion | Archive Imp. Titanium Leg | -7/Zion | Archive Force Booster | -7/Zion | Archive Adv. Sensor Array | -7/Zion | Archive Robot Schematics ------------------ K-01 Serf | -7/Zion | Archive C-17 Slicer | -7/Zion | Archive T-07 Excavator | -7/Zion | Archive Fabricated ------------ Nothing Alien Tech Used ----------------- None Achievements -------------- Friend Of Zion Challenges ------------ None Game ------ Seed DispersionSniperCharge Manual? 0 Play Time 03:11:04 Cumulative 77.9 hours Start 2023.03.24 @ 10:30:37 End 2023.03.24 @ 13:58:30 Sessions 1 Manual Loads 0 Difficulty Rogue Special Mode None Game No. 45 Rogue 45 Adventurer 0 Explorer 0 Win Type - Total 2 Types 2/0/0/0/0/0/0/0/0 Lore% 48 Gallery% 54 Achievement% 47 Wizard Run 0 Options --------- ASCII 0 Keyboard 0 Movement Vi Keybinds 0 Fullscreen 1 Font 16/SmallcapsGlow Map View 75x55 Tactical HUD 1 Map Filters NONE Filters NONE Steam 1 RUN: a2aeef79-95e5-4fb1-8cf4-75e04a1d5272